[Event "Late-Titled-Tuesday-Blitz-April-30-2024"]
[Site "Chess.com"]
[Date "2024.04.30"]
[Round "10"]
[White "Bala-Afiada"]
[Black "LuciaMalanRamos"]
[Result "0-1"]
[WhiteElo "2002"]
[BlackElo "2126"]
[TimeControl "180+1"]
[EndTime "15:55:33 PDT"]
[Termination "LuciaMalanRamos won by resignation"]

1. d4 {[%clk 0:03:00.9]} 1... d5 {[%clk 0:03:00.1]} 2. c4 {[%clk 0:02:58.6]}
2... e6 {[%clk 0:03:00.2]} 3. Nf3 {[%clk 0:02:58.7]} 3... Nf6 {[%clk 0:03:00.7]}
4. Qc2 {[%clk 0:02:58.9]} 4... c5 {[%clk 0:02:53.5]} 5. cxd5 {[%clk 0:02:58.7]}
5... exd5 {[%clk 0:02:53.7]} 6. dxc5 {[%clk 0:02:58.8]} 6... Qa5+ {[%clk
0:02:53]} 7. Bd2 {[%clk 0:02:53.8]} 7... Qxc5 {[%clk 0:02:53]} 8. Qxc5 {[%clk
0:02:52.6]} 8... Bxc5 {[%clk 0:02:53.9]} 9. Nc3 {[%clk 0:02:52.8]} 9... O-O
{[%clk 0:02:51.7]} 10. e3 {[%clk 0:02:43.9]} 10... h6 {[%clk 0:02:44.2]} 11. Be2
{[%clk 0:02:39.4]} 11... Be6 {[%clk 0:02:43.4]} 12. O-O {[%clk 0:02:39.3]} 12...
Nc6 {[%clk 0:02:43]} 13. Rac1 {[%clk 0:02:38.7]} 13... Bb6 {[%clk 0:02:39.7]}
14. Na4 {[%clk 0:02:30]} 14... Bc7 {[%clk 0:02:36.5]} 15. Nc5 {[%clk 0:02:29.1]}
15... Bc8 {[%clk 0:02:30]} 16. Bb5 {[%clk 0:02:16.8]} 16... Ne5 {[%clk
0:02:05.3]} 17. Nxe5 {[%clk 0:02:09.6]} 17... Bxe5 {[%clk 0:02:06.2]} 18. Bc3
{[%clk 0:01:52.2]} 18... Bxc3 {[%clk 0:02:03.6]} 19. Rxc3 {[%clk 0:01:51.6]}
19... b6 {[%clk 0:02:00.9]} 20. Na6 {[%clk 0:01:41.1]} 20... Ne4 {[%clk
0:01:47.4]} 21. Rc7 {[%clk 0:01:32]} 21... Bxa6 {[%clk 0:01:42.6]} 22. Bxa6
{[%clk 0:01:31.9]} 22... Nc5 {[%clk 0:01:43.3]} 23. Bb5 {[%clk 0:01:05.2]} 23...
Rfc8 {[%clk 0:01:37.2]} 24. Rxc8+ {[%clk 0:00:59.4]} 24... Rxc8 {[%clk
0:01:37.2]} 25. Rc1 {[%clk 0:00:58.1]} 25... Rc7 {[%clk 0:01:29.8]} 26. b4
{[%clk 0:00:56]} 26... Ne6 {[%clk 0:01:30]} 27. Rxc7 {[%clk 0:00:49]} 27... Nxc7
{[%clk 0:01:30.9]} 28. Bc6 {[%clk 0:00:49.6]} 28... Kf8 {[%clk 0:01:28.3]} 29.
Kf1 {[%clk 0:00:50]} 29... Ke7 {[%clk 0:01:28.6]} 30. Ke2 {[%clk 0:00:50.3]}
30... Kd6 {[%clk 0:01:29]} 31. Ba4 {[%clk 0:00:43.6]} 31... f6 {[%clk
0:01:18.6]} 32. Kd3 {[%clk 0:00:43.4]} 32... Ke5 {[%clk 0:01:13.9]} 33. Bb3
{[%clk 0:00:38.2]} 33... Na6 {[%clk 0:01:08.3]} 34. a3 {[%clk 0:00:37.5]} 34...
Nc7 {[%clk 0:01:08.2]} 35. f3 {[%clk 0:00:35.4]} 35... Nb5 {[%clk 0:01:06.6]}
36. a4 {[%clk 0:00:33.6]} 36... Nc7 {[%clk 0:01:06.6]} 37. a5 {[%clk 0:00:23.7]}
37... Na6 {[%clk 0:00:59.8]} 38. axb6 {[%clk 0:00:16.5]} 38... axb6 {[%clk
0:01:00.1]} 39. Kc3 {[%clk 0:00:13.4]} 39... Nc7 {[%clk 0:00:54.5]} 40. Ba4
{[%clk 0:00:13]} 40... g5 {[%clk 0:00:52.2]} 41. Bd7 {[%clk 0:00:12.6]} 41...
Kd6 {[%clk 0:00:50.8]} 42. Bc8 {[%clk 0:00:10.5]} 42... Nb5+ {[%clk 0:00:47.1]}
43. Kd3 {[%clk 0:00:10.9]} 43... Nc7 {[%clk 0:00:45.1]} 44. Bb7 {[%clk
0:00:10.7]} 44... Ne6 {[%clk 0:00:41]} 45. g3 {[%clk 0:00:08.3]} 45... Nd8
{[%clk 0:00:33.6]} 46. Ba6 {[%clk 0:00:07.6]} 46... Nc6 {[%clk 0:00:31.5]} 47.
b5 {[%clk 0:00:07.2]} 47... Ne7 {[%clk 0:00:17.7]} 48. g4 {[%clk 0:00:04.9]}
48... Kc5 {[%clk 0:00:16.8]} 49. f4 {[%clk 0:00:02.8]} 49... Ng8 {[%clk
0:00:15.6]} 50. fxg5 {[%clk 0:00:02.7]} 50... fxg5 {[%clk 0:00:15.5]} 51. e4
{[%clk 0:00:03.6]} 51... dxe4+ {[%clk 0:00:05.8]} 52. Kxe4 {[%clk 0:00:04.5]}
52... Nf6+ {[%clk 0:00:05.8]} 53. Kf5 {[%clk 0:00:05]} 53... Nd5 {[%clk
0:00:00.6]} 54. h3 {[%clk 0:00:05.2]} 54... Nf4 {[%clk 0:00:01.1]} 55. Kf6
{[%clk 0:00:01.1]} 55... Nxh3 {[%clk 0:00:01.7]} 56. Kg6 {[%clk 0:00:01.6]}
56... Nf2 {[%clk 0:00:02.1]} 57. Kxh6 {[%clk 0:00:02.2]} 57... Nxg4+ {[%clk
0:00:02.8]} 58. Kxg5 {[%clk 0:00:03]} 58... Ne3 {[%clk 0:00:03.6]} 59. Kf6
{[%clk 0:00:03.7]} 59... Nc2 {[%clk 0:00:04.4]} 60. Ke5 {[%clk 0:00:04.4]} 60...
Na3 {[%clk 0:00:05.2]} 61. Ke6 {[%clk 0:00:04.2]} 61... Nxb5 {[%clk 0:00:06.1]}
62. Bxb5 {[%clk 0:00:04.5]} 62... Kxb5 {[%clk 0:00:07]} 63. Ke5 {[%clk
0:00:05.3]} 63... Ka4 {[%clk 0:00:07.6]} 64. Kd4 {[%clk 0:00:06.2]} 64... b5
{[%clk 0:00:07.7]} 65. Kc3 {[%clk 0:00:06.7]} 65... Ka3 {[%clk 0:00:08.1]} 66.
Kc2 {[%clk 0:00:06.7]} 66... Ka2 {[%clk 0:00:08.7]} 67. Kc3 {[%clk 0:00:07.3]}
67... Ka3 {[%clk 0:00:08.9]} 68. Kc2 {[%clk 0:00:07.8]} 68... b4 {[%clk
0:00:09]} 69. Kb1 {[%clk 0:00:08.3]} 69... Kb3 {[%clk 0:00:09.5]} 70. Kc1 {[%clk
0:00:08.6]} 70... Ka2 {[%clk 0:00:10]} 0-1

[Event "Late-Titled-Tuesday-Blitz-April-30-2024"]
[Site "Chess.com"]
[Date "2024.04.30"]
[Round "10"]
[White "Rodalquilar"]
[Black "kalinchick"]
[Result "1-0"]
[WhiteElo "2675"]
[BlackElo "2478"]
[TimeControl "180+1"]
[EndTime "15:55:34 PDT"]
[Termination "Rodalquilar won by checkmate"]

1. d4 {[%clk 0:03:00.9]} 1... e6 {[%clk 0:03:00.9]} 2. Nf3 {[%clk 0:03:01.1]}
2... d5 {[%clk 0:03:01.5]} 3. Bf4 {[%clk 0:03:01.1]} 3... Bd6 {[%clk 0:02:59.7]}
4. Bg3 {[%clk 0:03:01.1]} 4... Qe7 {[%clk 0:02:52.7]} 5. c3 {[%clk 0:02:49.8]}
5... Bxg3 {[%clk 0:02:52]} 6. hxg3 {[%clk 0:02:49.7]} 6... Nd7 {[%clk
0:02:52.1]} 7. Nbd2 {[%clk 0:02:47]} 7... Ngf6 {[%clk 0:02:49]} 8. e3 {[%clk
0:02:46]} 8... e5 {[%clk 0:02:49]} 9. Qa4 {[%clk 0:02:36]} 9... c6 {[%clk
0:02:43.9]} 10. dxe5 {[%clk 0:02:32.2]} 10... Nxe5 {[%clk 0:02:44.8]} 11. Qf4
{[%clk 0:02:31.9]} 11... Nxf3+ {[%clk 0:02:35.2]} 12. gxf3 {[%clk 0:02:31.6]}
12... Be6 {[%clk 0:02:21]} 13. g4 {[%clk 0:02:29.9]} 13... O-O-O {[%clk
0:02:18]} 14. Bd3 {[%clk 0:02:29]} 14... h6 {[%clk 0:02:13.8]} 15. O-O-O {[%clk
0:02:28.8]} 15... Qc7 {[%clk 0:02:13.5]} 16. Qxc7+ {[%clk 0:02:27]} 16... Kxc7
{[%clk 0:02:14.4]} 17. Rdg1 {[%clk 0:02:26.8]} 17... a5 {[%clk 0:01:55.8]} 18.
Nb3 {[%clk 0:02:23.9]} 18... b6 {[%clk 0:01:53.7]} 19. Nd4 {[%clk 0:02:23.8]}
19... Kd6 {[%clk 0:01:46.3]} 20. Kd2 {[%clk 0:02:23.7]} 20... Nd7 {[%clk
0:01:34.5]} 21. f4 {[%clk 0:02:20.5]} 21... Nc5 {[%clk 0:01:29.2]} 22. Bc2
{[%clk 0:02:15.1]} 22... Bd7 {[%clk 0:01:12.7]} 23. f3 {[%clk 0:02:12.8]} 23...
Rde8 {[%clk 0:01:09.2]} 24. a4 {[%clk 0:01:45.1]} 24... Nb7 {[%clk 0:01:03.1]}
25. Rh5 {[%clk 0:01:38.8]} 25... c5 {[%clk 0:00:58.9]} 26. Nf5+ {[%clk 0:01:33]}
26... Bxf5 {[%clk 0:00:58.5]} 27. Rxf5 {[%clk 0:01:33.9]} 27... Re7 {[%clk
0:00:51.6]} 28. e4 {[%clk 0:01:03]} 28... dxe4 {[%clk 0:00:44.2]} 29. fxe4
{[%clk 0:01:02.8]} 29... Kc7 {[%clk 0:00:44.6]} 30. e5 {[%clk 0:01:02.4]} 30...
Nd8 {[%clk 0:00:43.7]} 31. Bb3 {[%clk 0:01:01.1]} 31... Ne6 {[%clk 0:00:39.2]}
32. Ke3 {[%clk 0:00:54.7]} 32... Rd8 {[%clk 0:00:35.8]} 33. Bc4 {[%clk
0:00:28.3]} 33... Red7 {[%clk 0:00:34.6]} 34. Rxf7 {[%clk 0:00:17.2]} 34... Rxf7
{[%clk 0:00:34.4]} 35. Bxe6 {[%clk 0:00:17.7]} 35... Re7 {[%clk 0:00:21]} 36. f5
{[%clk 0:00:18]} 36... Kc6 {[%clk 0:00:13.8]} 37. Rg2 {[%clk 0:00:14.2]} 37...
Rd1 {[%clk 0:00:13.3]} 38. Rf2 {[%clk 0:00:07.7]} 38... Re1+ {[%clk 0:00:11.8]}
39. Kf4 {[%clk 0:00:08.1]} 39... b5 {[%clk 0:00:09.8]} 40. axb5+ {[%clk
0:00:07.7]} 40... Kxb5 {[%clk 0:00:10.7]} 41. Rd2 {[%clk 0:00:06.3]} 41... Rf1+
{[%clk 0:00:08.9]} 42. Ke4 {[%clk 0:00:06.7]} 42... Re1+ {[%clk 0:00:09.4]} 43.
Kd5 {[%clk 0:00:07.3]} 43... a4 {[%clk 0:00:09.2]} 44. Kd6 {[%clk 0:00:07.7]}
44... Ra7 {[%clk 0:00:08.2]} 45. Rd5 {[%clk 0:00:04.6]} 45... Ra6+ {[%clk
0:00:07.8]} 46. Ke7 {[%clk 0:00:03.6]} 46... a3 {[%clk 0:00:07.5]} 47. bxa3
{[%clk 0:00:03.5]} 47... Rxa3 {[%clk 0:00:07.9]} 48. c4+ {[%clk 0:00:03.9]}
48... Kb4 {[%clk 0:00:07.3]} 49. f6 {[%clk 0:00:01.9]} 49... Ra7+ {[%clk
0:00:08]} 50. Rd7 {[%clk 0:00:02]} 50... g5 {[%clk 0:00:08.9]} 51. f7 {[%clk
0:00:02.2]} 51... Rxd7+ {[%clk 0:00:07.8]} 52. Kxd7 {[%clk 0:00:02.3]} 52...
Rd1+ {[%clk 0:00:07.7]} 53. Ke7 {[%clk 0:00:02.6]} 53... Rf1 {[%clk 0:00:07]}
54. f8=Q {[%clk 0:00:03.1]} 54... Rxf8 {[%clk 0:00:05.2]} 55. Kxf8 {[%clk
0:00:04]} 55... Kc3 {[%clk 0:00:05.6]} 56. Kf7 {[%clk 0:00:04]} 56... Kd4 {[%clk
0:00:06.5]} 57. Bf5 {[%clk 0:00:04]} 57... Kxe5 {[%clk 0:00:06.6]} 58. Kg6
{[%clk 0:00:04.6]} 58... Kf4 {[%clk 0:00:06.8]} 59. Kh5 {[%clk 0:00:04.9]} 59...
Ke5 {[%clk 0:00:07.1]} 60. Kxh6 {[%clk 0:00:05.1]} 60... Kf6 {[%clk 0:00:08]}
61. Kh5 {[%clk 0:00:05.5]} 61... Ke5 {[%clk 0:00:08.8]} 62. Kxg5 {[%clk
0:00:06.2]} 62... Kd4 {[%clk 0:00:09.6]} 63. Be6 {[%clk 0:00:06.9]} 63... Ke5
{[%clk 0:00:09.8]} 64. Bd5 {[%clk 0:00:07.5]} 64... Kd6 {[%clk 0:00:10.7]} 65.
Kf6 {[%clk 0:00:08]} 65... Kd7 {[%clk 0:00:10.6]} 66. g5 {[%clk 0:00:08.5]}
66... Kc7 {[%clk 0:00:11.5]} 67. g6 {[%clk 0:00:09.1]} 67... Kb6 {[%clk
0:00:12.4]} 68. g7 {[%clk 0:00:09.4]} 68... Ka5 {[%clk 0:00:13.3]} 69. g8=Q
{[%clk 0:00:09.9]} 69... Kb4 {[%clk 0:00:14.2]} 70. Qg3 {[%clk 0:00:09.9]} 70...
Ka4 {[%clk 0:00:15.1]} 71. Qd6 {[%clk 0:00:08.2]} 71... Ka5 {[%clk 0:00:16]} 72.
Qxc5+ {[%clk 0:00:08.4]} 72... Ka4 {[%clk 0:00:16.9]} 73. Qb5+ {[%clk
0:00:08.9]} 73... Ka3 {[%clk 0:00:17.3]} 74. Ke5 {[%clk 0:00:09.6]} 74... Ka2
{[%clk 0:00:16.2]} 75. Kd4 {[%clk 0:00:10.1]} 75... Ka1 {[%clk 0:00:17.1]} 76.
Kc3 {[%clk 0:00:10.6]} 76... Ka2 {[%clk 0:00:17.7]} 77. Qb2# {[%clk 0:00:10.8]}
1-0

[Event "Late-Titled-Tuesday-Blitz-April-30-2024"]
[Site "Chess.com"]
[Date "2024.04.30"]
[Round "10"]
[White "MuhittinBuker"]
[Black "realburq"]
[Result "1-0"]
[WhiteElo "2212"]
[BlackElo "2363"]
[TimeControl "180+1"]
[EndTime "15:55:34 PDT"]
[Termination "MuhittinBuker won by resignation"]

1. d4 {[%clk 0:03:00.9]} 1... d5 {[%clk 0:03:00.5]} 2. c4 {[%clk 0:02:59.9]}
2... e6 {[%clk 0:03:01.1]} 3. Nc3 {[%clk 0:03:00.1]} 3... Nf6 {[%clk 0:03:00.9]}
4. Nf3 {[%clk 0:03:00.1]} 4... Nbd7 {[%clk 0:02:56.1]} 5. Bg5 {[%clk 0:03:00.5]}
5... Bb4 {[%clk 0:02:55.5]} 6. e3 {[%clk 0:03:00.5]} 6... c5 {[%clk 0:02:47.4]}
7. cxd5 {[%clk 0:03:00.2]} 7... exd5 {[%clk 0:02:44.2]} 8. Bb5 {[%clk 0:02:57]}
8... Qa5 {[%clk 0:02:38.5]} 9. O-O {[%clk 0:02:46.5]} 9... Bxc3 {[%clk
0:02:37.7]} 10. Bxd7+ {[%clk 0:02:46]} 10... Bxd7 {[%clk 0:02:34.5]} 11. bxc3
{[%clk 0:02:40.6]} 11... Ne4 {[%clk 0:02:24.6]} 12. Qb1 {[%clk 0:02:25.4]} 12...
Bc6 {[%clk 0:01:45]} 13. dxc5 {[%clk 0:02:14.2]} 13... Qxc5 {[%clk 0:01:35.6]}
14. Bf4 {[%clk 0:02:09.7]} 14... O-O {[%clk 0:01:31.6]} 15. Be5 {[%clk
0:01:49.1]} 15... Rfe8 {[%clk 0:00:56.1]} 16. Bd4 {[%clk 0:01:48.3]} 16... Qd6
{[%clk 0:00:55.9]} 17. Qb2 {[%clk 0:01:42.3]} 17... f6 {[%clk 0:00:52.9]} 18.
Rfd1 {[%clk 0:01:40.2]} 18... b6 {[%clk 0:00:29.7]} 19. Rac1 {[%clk 0:01:37.3]}
19... Rad8 {[%clk 0:00:26.5]} 20. c4 {[%clk 0:01:24.5]} 20... dxc4 {[%clk
0:00:27.4]} 21. Rxc4 {[%clk 0:01:23.8]} 21... Bb7 {[%clk 0:00:25.5]} 22. Rdc1
{[%clk 0:01:20.8]} 22... Re7 {[%clk 0:00:21.7]} 23. Qc2 {[%clk 0:01:10.5]} 23...
Red7 {[%clk 0:00:20.1]} 24. h3 {[%clk 0:01:00.9]} 24... h6 {[%clk 0:00:18.1]}
25. Qa4 {[%clk 0:00:45.4]} 25... Nc5 {[%clk 0:00:16.6]} 26. Bxc5 {[%clk
0:00:37.4]} 26... bxc5 {[%clk 0:00:17.5]} 27. Rxc5 {[%clk 0:00:35.5]} 27... Bxf3
{[%clk 0:00:16.7]} 28. gxf3 {[%clk 0:00:35.2]} 28... Qd2 {[%clk 0:00:16.1]} 29.
Qc4+ {[%clk 0:00:32.2]} 29... Kh8 {[%clk 0:00:15]} 30. Rc8 {[%clk 0:00:32.1]}
30... Kh7 {[%clk 0:00:13.8]} 31. Rxd8 {[%clk 0:00:31.6]} 31... Rxd8 {[%clk
0:00:14.7]} 32. Qc2+ {[%clk 0:00:31.5]} 32... Qxc2 {[%clk 0:00:13.9]} 33. Rxc2
{[%clk 0:00:31.9]} 33... Rd7 {[%clk 0:00:13.2]} 34. f4 {[%clk 0:00:30]} 34...
Kg6 {[%clk 0:00:13.1]} 35. Kg2 {[%clk 0:00:29.9]} 35... h5 {[%clk 0:00:11.4]}
36. e4 {[%clk 0:00:26.7]} 36... Rb7 {[%clk 0:00:07.3]} 37. h4 {[%clk 0:00:25.5]}
37... Rd7 {[%clk 0:00:07.8]} 38. f3 {[%clk 0:00:22.5]} 38... Rb7 {[%clk
0:00:07.5]} 39. Kg3 {[%clk 0:00:22.6]} 39... Rb1 {[%clk 0:00:07.6]} 40. f5+
{[%clk 0:00:20.3]} 40... Kh6 {[%clk 0:00:06.9]} 41. Rg2 {[%clk 0:00:19.4]} 41...
Rf1 {[%clk 0:00:05.8]} 42. Kf4 {[%clk 0:00:19]} 42... Rh1 {[%clk 0:00:05.7]} 43.
Kg3 {[%clk 0:00:18.5]} 43... Ra1 {[%clk 0:00:04.7]} 44. Rb2 {[%clk 0:00:18.1]}
44... Rg1+ {[%clk 0:00:04.5]} 45. Kh2 {[%clk 0:00:17.9]} 45... Ra1 {[%clk
0:00:04]} 46. Kg2 {[%clk 0:00:16.3]} 46... Rd1 {[%clk 0:00:03.7]} 47. Rb8 {[%clk
0:00:15.6]} 47... Rd2+ {[%clk 0:00:04.2]} 48. Kg3 {[%clk 0:00:15.1]} 48... Kh7
{[%clk 0:00:04.6]} 49. Rb7 {[%clk 0:00:15]} 49... Rxa2 {[%clk 0:00:04.5]} 50. e5
{[%clk 0:00:15.2]} 50... fxe5 {[%clk 0:00:03.3]} 51. f6 {[%clk 0:00:15.6]} 51...
Kg8 {[%clk 0:00:03.1]} 52. Rxg7+ {[%clk 0:00:15.6]} 52... Kf8 {[%clk 0:00:03.9]}
53. Re7 {[%clk 0:00:15.4]} 53... a5 {[%clk 0:00:02.7]} 54. Rxe5 {[%clk
0:00:15.4]} 54... a4 {[%clk 0:00:03.6]} 55. Rxh5 {[%clk 0:00:15.1]} 55... a3
{[%clk 0:00:04.5]} 56. Ra5 {[%clk 0:00:15.1]} 56... Kf7 {[%clk 0:00:04.9]} 57.
Ra6 {[%clk 0:00:15.5]} 57... Ra1 {[%clk 0:00:05.1]} 58. Kf4 {[%clk 0:00:15.4]}
58... Rh1 {[%clk 0:00:05.5]} 59. Kg5 {[%clk 0:00:15.5]} 59... Rg1+ {[%clk
0:00:05.6]} 60. Kf5 {[%clk 0:00:15.4]} 60... Rh1 {[%clk 0:00:05.1]} 61. Ra7+
{[%clk 0:00:15.6]} 61... Kf8 {[%clk 0:00:05.5]} 62. Rxa3 {[%clk 0:00:15.6]}
62... Rxh4 {[%clk 0:00:05.4]} 63. Kg6 {[%clk 0:00:15]} 63... Ke8 {[%clk
0:00:02.2]} 64. Ra8+ {[%clk 0:00:15]} 64... Kd7 {[%clk 0:00:02.2]} 65. f7 {[%clk
0:00:15.4]} 65... Rh1 {[%clk 0:00:01.7]} 66. f8=Q {[%clk 0:00:15.2]} 66... Rg1+
{[%clk 0:00:02.6]} 67. Kf6 {[%clk 0:00:14.3]} 67... Rg6+ {[%clk 0:00:02.1]} 68.
Kxg6 {[%clk 0:00:13.6]} 1-0

[Event "Late-Titled-Tuesday-Blitz-April-30-2024"]
[Site "Chess.com"]
[Date "2024.04.30"]
[Round "10"]
[White "IngOscarArdila"]
[Black "zverr1"]
[Result "0-1"]
[WhiteElo "2335"]
[BlackElo "2476"]
[TimeControl "180+1"]
[EndTime "15:55:35 PDT"]
[Termination "zverr1 won by resignation"]

1. d4 {[%clk 0:03:00.1]} 1... Nf6 {[%clk 0:02:59.8]} 2. Nf3 {[%clk 0:03:00.6]}
2... g6 {[%clk 0:03:00.6]} 3. c3 {[%clk 0:03:00]} 3... Bg7 {[%clk 0:03:00.6]} 4.
Nbd2 {[%clk 0:03:00.5]} 4... O-O {[%clk 0:02:58.3]} 5. e4 {[%clk 0:03:00.7]}
5... d6 {[%clk 0:02:58]} 6. Bd3 {[%clk 0:03:00.8]} 6... Nc6 {[%clk 0:02:57]} 7.
Qe2 {[%clk 0:02:59.6]} 7... e5 {[%clk 0:02:56.4]} 8. dxe5 {[%clk 0:02:58.6]}
8... dxe5 {[%clk 0:02:52.2]} 9. O-O {[%clk 0:02:56.5]} 9... Nh5 {[%clk
0:02:50.5]} 10. g3 {[%clk 0:02:55]} 10... Bh3 {[%clk 0:02:46]} 11. Re1 {[%clk
0:02:54.8]} 11... Qe7 {[%clk 0:02:46]} 12. Nc4 {[%clk 0:02:50.8]} 12... Rad8
{[%clk 0:02:43.9]} 13. Bg5 {[%clk 0:02:42.3]} 13... f6 {[%clk 0:02:43.7]} 14.
Bc1 {[%clk 0:02:41.2]} 14... Rd7 {[%clk 0:02:42.8]} 15. Ne3 {[%clk 0:02:39.5]}
15... Rfd8 {[%clk 0:02:38.6]} 16. Bc4+ {[%clk 0:02:38.8]} 16... Kh8 {[%clk
0:02:38.2]} 17. Nd5 {[%clk 0:02:39]} 17... Qf8 {[%clk 0:02:36.4]} 18. Qc2 {[%clk
0:02:34.5]} 18... Na5 {[%clk 0:02:34.9]} 19. Bf1 {[%clk 0:02:33]} 19... Bxf1
{[%clk 0:02:32.1]} 20. Kxf1 {[%clk 0:02:28.7]} 20... c6 {[%clk 0:02:32.2]} 21.
Ne3 {[%clk 0:02:27.8]} 21... Qf7 {[%clk 0:02:24.2]} 22. b3 {[%clk 0:02:26.4]}
22... Qe6 {[%clk 0:02:22.1]} 23. c4 {[%clk 0:02:20.3]} 23... Bf8 {[%clk
0:02:17.9]} 24. Bd2 {[%clk 0:02:16]} 24... b6 {[%clk 0:02:13.8]} 25. Bxa5 {[%clk
0:02:14]} 25... bxa5 {[%clk 0:02:14.7]} 26. Red1 {[%clk 0:02:14.1]} 26... Bc5
{[%clk 0:02:11.4]} 27. Rxd7 {[%clk 0:02:12.1]} 27... Rxd7 {[%clk 0:02:12.3]} 28.
Re1 {[%clk 0:01:56.3]} 28... Qh3+ {[%clk 0:02:03.7]} 29. Kg1 {[%clk 0:01:55.2]}
29... Nf4 {[%clk 0:02:02.1]} 30. gxf4 {[%clk 0:01:20]} 30... Qxf3 {[%clk
0:02:01.2]} 31. fxe5 {[%clk 0:01:17.3]} 31... fxe5 {[%clk 0:01:57.2]} 32. Qe2
{[%clk 0:01:02]} 32... Qxe4 {[%clk 0:01:52.2]} 33. Ng4 {[%clk 0:01:02.1]} 33...
Qxe2 {[%clk 0:01:35.8]} 34. Rxe2 {[%clk 0:01:03]} 34... Bd4 {[%clk 0:01:21.5]}
35. Nxe5 {[%clk 0:00:49.5]} 35... Rc7 {[%clk 0:01:18.3]} 36. Nf3 {[%clk
0:00:46.3]} 36... Bf6 {[%clk 0:01:13.7]} 37. Nd2 {[%clk 0:00:40.7]} 37... Kg7
{[%clk 0:01:13.4]} 38. Ne4 {[%clk 0:00:40.6]} 38... Be7 {[%clk 0:01:14]} 39. f4
{[%clk 0:00:37.4]} 39... a4 {[%clk 0:01:13.4]} 40. Kf2 {[%clk 0:00:35.7]} 40...
Rb7 {[%clk 0:01:13.1]} 41. bxa4 {[%clk 0:00:31.9]} 41... Rb4 {[%clk 0:01:10.8]}
42. Kg2 {[%clk 0:00:22.7]} 42... Kf7 {[%clk 0:01:01.3]} 43. c5 {[%clk
0:00:20.5]} 43... Rxa4 {[%clk 0:01:00]} 44. Kf3 {[%clk 0:00:19.9]} 44... Rd4
{[%clk 0:00:56]} 45. Ke3 {[%clk 0:00:18.1]} 45... Rd5 {[%clk 0:00:53.8]} 46. Rc2
{[%clk 0:00:18.3]} 46... Rh5 {[%clk 0:00:51.5]} 47. a3 {[%clk 0:00:17.2]} 47...
Rh3+ {[%clk 0:00:51.5]} 48. Kd4 {[%clk 0:00:17.2]} 48... Rxa3 {[%clk 0:00:51.5]}
49. Rb2 {[%clk 0:00:15.6]} 49... Ke6 {[%clk 0:00:48.1]} 50. Re2 {[%clk
0:00:14.2]} 50... Ra4+ {[%clk 0:00:47.4]} 51. Kd3 {[%clk 0:00:14.4]} 51... Kd7
{[%clk 0:00:45]} 52. Rd2 {[%clk 0:00:13.7]} 52... Kc7 {[%clk 0:00:44.2]} 53. Re2
{[%clk 0:00:11.5]} 53... Ra3+ {[%clk 0:00:38.3]} 54. Kd4 {[%clk 0:00:11.3]}
54... Rh3 {[%clk 0:00:36.4]} 55. Ra2 {[%clk 0:00:08.8]} 55... Kb7 {[%clk
0:00:31.8]} 56. Rb2+ {[%clk 0:00:09.1]} 56... Kc8 {[%clk 0:00:32.3]} 57. Ra2
{[%clk 0:00:09.3]} 57... Kb7 {[%clk 0:00:28.2]} 58. Rb2+ {[%clk 0:00:09.1]}
58... Ka8 {[%clk 0:00:27.8]} 59. Ke5 {[%clk 0:00:07.6]} 59... Rd3 {[%clk
0:00:25.9]} 60. Ke6 {[%clk 0:00:05.5]} 60... Bd8 {[%clk 0:00:17.7]} 61. Nd6
{[%clk 0:00:03.6]} 61... a5 {[%clk 0:00:17.6]} 62. Kd7 {[%clk 0:00:03.8]} 62...
Bf6 {[%clk 0:00:14.3]} 63. Kc8 {[%clk 0:00:03.9]} 63... Bxb2 {[%clk 0:00:13.8]}
64. Nb7 {[%clk 0:00:04.2]} 64... a4 {[%clk 0:00:12.2]} 65. Na5 {[%clk
0:00:04.8]} 65... a3 {[%clk 0:00:12.3]} 66. Nxc6 {[%clk 0:00:05.7]} 66... a2
{[%clk 0:00:12.4]} 67. Nd8 {[%clk 0:00:06.3]} 67... a1=Q {[%clk 0:00:12.3]} 68.
c6 {[%clk 0:00:07.2]} 68... Qa6+ {[%clk 0:00:12.4]} 69. Kc7 {[%clk 0:00:07.1]}
69... Rxd8 {[%clk 0:00:12.2]} 70. Kxd8 {[%clk 0:00:06.5]} 70... Qxc6 {[%clk
0:00:12.5]} 0-1